fUST/lending_fUST_20260106
["ID","MTS","AMOUNT","RATE_DAILY","PERIOD"]
[400503896,1767677443655,-347.0,0.00015383,2]
[400503897,1767677443664,-151.0,0.00015383,2]
[400503898,1767677443674,-152.0,0.00015383,2]
[400503899,1767677443683,-166.0,0.00015383,2]
[400503900,1767677443692,-336.0,0.00015383,2]
[400503901,1767677443701,-203.94663828,0.00015383,2]
[400503902,1767677443712,-347.0,0.00015383,2]
[400503903,1767677443722,-152.0,0.00015383,2]
[400503904,1767677443731,-151.0,0.00015383,2]
[400503906,1767677443740,-152.0,0.00015383,2]
[400503907,1767677443749,-166.0,0.00015383,2]
[400503908,1767677443759,-336.0,0.00015383,2]
[400503909,1767677443768,-347.0,0.00015383,2]
[400503910,1767677443777,-152.0,0.00015383,2]
[400503911,1767677443786,-151.0,0.00015383,2]
[400503913,1767677443795,-152.0,0.00015383,2]
[400503914,1767677443805,-166.0,0.00015383,2]
[400503915,1767677443813,-336.0,0.00015383,2]
[400503916,1767677443822,-347.0,0.00015383,2]
[400503917,1767677443831,-152.0,0.00015383,2]
[400503918,1767677443840,-151.0,0.00015383,2]
[400503919,1767677443849,-152.0,0.00015383,2]
[400503920,1767677443859,-336.0,0.00015383,2]
[400503921,1767677443868,-166.0,0.00015383,2]
[400503922,1767677443877,-300.09906801,0.00015383,2]
[400503923,1767677443886,-151.0,0.00015383,2]
[400503924,1767677443896,-152.0,0.00015383,2]
[400503925,1767677443906,-336.0,0.00015383,2]
[400503926,1767677443916,-166.0,0.00015383,2]
[400503927,1767677443926,-347.0,0.00015383,2]
[400503928,1767677443935,-151.0,0.00015383,2]
[400503929,1767677443944,-152.0,0.00015383,2]
[400503930,1767677443954,-336.0,0.00015383,2]
[400503931,1767677443963,-166.0,0.00015383,2]
[400503932,1767677443973,-347.0,0.00015383,2]
[400503933,1767677443983,-151.0,0.00015383,2]
[400503934,1767677443992,-152.0,0.00015383,2]
[400503935,1767677444002,-336.0,0.00015383,2]
[400503936,1767677444011,-347.0,0.00015383,2]
[400503937,1767677444021,-172.0,0.00015383,2]
[400503938,1767677444030,-151.0,0.00015383,2]
[400503939,1767677444039,-152.0,0.00015383,2]
[400503940,1767677444049,-336.0,0.00015383,2]
[400503941,1767677444058,-347.0,0.00015383,2]
[400503942,1767677444068,-336.0,0.00015383,2]
[400503943,1767677444077,-151.0,0.00015383,2]
[400503944,1767677444086,-152.0,0.00015383,2]
[400503945,1767677444095,-347.0,0.00015383,2]
[400503946,1767677444104,-151.0,0.00015383,2]
[400503947,1767677444114,-336.0,0.00015383,2]
[400503948,1767677444123,-151.0,0.00015383,2]
[400503949,1767677444132,-152.0,0.00015383,2]
[400503950,1767677444142,-347.0,0.00015383,2]
[400503951,1767677444152,-151.0,0.00015383,2]
[400503952,1767677444161,-336.0,0.00015383,2]
[400503953,1767677444171,-151.0,0.00015383,2]
[400503954,1767677444180,-152.0,0.00015383,2]
[400503955,1767677444189,-347.0,0.00015383,2]
[400503956,1767677444198,-151.0,0.00015383,2]
[400503957,1767677444208,-336.0,0.00015383,2]
[400503958,1767677444218,-151.0,0.00015383,2]
[400503959,1767677444227,-152.0,0.00015383,2]
[400503960,1767677444237,-347.0,0.00015383,2]
[400503961,1767677444246,-151.0,0.00015383,2]
[400503962,1767677444255,-336.0,0.00015383,2]
[400503963,1767677444265,-151.0,0.00015383,2]
[400503964,1767677444278,-347.0,0.00015383,2]
[400503965,1767677444287,-152.0,0.00015383,2]
[400503966,1767677444296,-336.0,0.00015383,2]
[400503967,1767677444306,-151.0,0.00015383,2]
[400503968,1767677444317,-151.0,0.00015383,2]
[400503969,1767677444327,-347.0,0.00015383,2]
[400503970,1767677444337,-152.0,0.00015383,2]
[400503971,1767677444347,-336.0,0.00015383,2]
[400503972,1767677444356,-151.0,0.00015383,2]
[400503973,1767677444365,-151.0,0.00015383,2]
[400503974,1767677444375,-152.0,0.00015383,2]
[400503975,1767677444384,-347.0,0.00015383,2]
[400503976,1767677444393,-151.0,0.00015383,2]
[400503977,1767677444402,-336.0,0.00015383,2]
[400503979,1767677444411,-151.0,0.00015383,2]
[400503980,1767677444420,-347.0,0.00015383,2]
[400503981,1767677444430,-152.0,0.00015383,2]
[400503982,1767677444440,-336.0,0.00015383,2]
[400503983,1767677444449,-151.0,0.00015383,2]
[400503985,1767677444458,-151.0,0.00015383,2]
[400503986,1767677444467,-347.0,0.00015383,2]
[400503987,1767677444476,-152.0,0.00015383,2]
[400503988,1767677444485,-151.0,0.00015383,2]
[400503989,1767677444494,-151.0,0.00015383,2]
[400503990,1767677444503,-336.0,0.00015383,2]
[400503991,1767677444512,-347.0,0.00015383,2]
[400503992,1767677444521,-266.60656086,0.00015383,2]
[400503993,1767677444530,-151.0,0.00015383,2]
[400503994,1767677444649,-336.0,0.00015383,2]
[400503995,1767677444662,-347.0,0.00015383,2]
[400503996,1767677444671,-187.9115595,0.00015383,2]
[400503997,1767677444681,-151.0,0.00015383,2]
[400503998,1767677444690,-336.0,0.00015383,2]
[400503999,1767677444699,-347.0,0.00015383,2]
[400504000,1767677444708,-151.0,0.00015383,2]
[400504001,1767677444718,-336.0,0.00015383,2]
[400504002,1767677444728,-347.0,0.00015383,2]
[400504003,1767677444738,-151.0,0.00015383,2]
[400504004,1767677444747,-336.0,0.00015383,2]
[400504005,1767677444757,-347.0,0.00015383,2]
[400504006,1767677444767,-151.0,0.00015383,2]
[400504007,1767677444776,-347.0,0.00015383,2]
[400504008,1767677444785,-336.0,0.00015383,2]
[400504009,1767677444795,-151.0,0.00015383,2]
[400504010,1767677444804,-347.0,0.00015383,2]
[400504011,1767677444813,-336.0,0.00015383,2]
[400504012,1767677444822,-151.0,0.00015383,2]
[400504013,1767677444831,-347.0,0.00015383,2]
[400504014,1767677444840,-336.0,0.00015383,2]
[400504015,1767677444850,-336.0,0.00015383,2]
[400504016,1767677444859,-151.0,0.00015383,2]
[400504017,1767677444868,-336.0,0.00015383,2]
[400504018,1767677444877,-336.0,0.00015383,2]
[400504019,1767677444886,-151.0,0.00015383,2]
[400504020,1767677444895,-347.0,0.00015383,2]
[400504021,1767677444904,-151.0,0.00015383,2]
[400504022,1767677444913,-336.0,0.00015383,2]
[400504023,1767677444922,-384.35661619,0.00015383,2]
[400504024,1767677444931,-151.0,0.00015383,2]
[400504025,1767677444940,-347.0,0.00015383,2]
[400504026,1767677444949,-151.0,0.00015383,2]
[400504027,1767677444958,-347.0,0.00015383,2]
[400504028,1767677444968,-151.0,0.00015383,2]
[400504029,1767677444977,-347.0,0.00015383,2]
[400504030,1767677444985,-152.47148101,0.00015383,2]
[400504031,1767677444995,-347.0,0.00015383,2]
[400504032,1767677445004,-347.0,0.00015383,2]
[400504033,1767677445013,-347.0,0.00015383,2]
[400504034,1767677445022,-347.0,0.00015383,2]
[400504035,1767677445032,-347.0,0.00015383,2]
[400504036,1767677445041,-347.0,0.00015383,2]
[400504037,1767677445050,-347.0,0.00015383,2]
[400504038,1767677445060,-347.0,0.00015383,2]
[400504039,1767677445069,-347.0,0.00015383,2]
[400504040,1767677445079,-497.38160388,0.00015383,2]
[400504041,1767677445088,-600.0,0.000154,2]
[400504042,1767677445097,-777.0,0.000154,2]
[400504043,1767677445107,-212.54773642,0.00015426,2]
[400504044,1767677445116,-11514.19562317,0.0001545,2]
[400504045,1767677445125,-2500.0,0.00015464,2]
[400504046,1767677445135,-538.81751467,0.00015464,2]
[400504047,1767677445145,-1524.85596201,0.00015464,2]
[400504048,1767677445154,-1380.83045081,0.00015464,2]
[400504049,1767677445164,-2000.0,0.00015464,2]
[400504050,1767677445174,-32261.07,0.00015465,2]
[400504051,1767677445183,-2313.40259567,0.00015465,2]
[400504052,1767677445193,-11022.29277644,0.00015499,2]
[400504053,1767677445202,-187.6450084,0.0001555,2]
[400504054,1767677445213,-184.3328384,0.0001555,2]
[400504055,1767677445223,-184.3328384,0.0001555,2]
[400504056,1767677445232,-184.3328384,0.0001555,2]
[400504057,1767677445242,-184.3328384,0.0001555,2]
[400504058,1767677445251,-184.3328384,0.0001555,2]
[400504059,1767677445261,-612.9682509,0.0001555,2]
[400504060,1767677445274,-184.3328384,0.0001555,2]
[400504061,1767677445283,-184.3328384,0.0001555,2]
[400504062,1767677445292,-184.3328384,0.0001555,2]
[400504063,1767677445303,-184.3328384,0.0001555,2]
[400504064,1767677445313,-187.9279698,0.0001555,2]
[400504065,1767677445322,-2145.0,0.00015598,2]
[400504066,1767677445331,-628.0,0.00015598,2]
[400504067,1767677445340,-1365.0,0.00015598,2]
[400504068,1767677445349,-178.0,0.00015598,2]
[400504069,1767677445359,-417.0,0.00015598,2]
[400504070,1767677445368,-1000.0,0.00015625,5]
[400504071,1767677445377,-160.0,0.00015699,6]
[400504072,1767677445386,-161.11030349,0.00015738,2]
[400504073,1767677445396,-586.81663952,0.00015864,2]
[400504074,1767677445405,-545.0,0.00015873,2]
[400504075,1767677445415,-1006.10461326,0.0001589,2]
[400504076,1767677445424,-151.0,0.00015902,2]
[400504077,1767677445433,-269.211237,0.00015902,2]
[400504078,1767677445443,-277.63918295,0.00015903,2]
[400504079,1767677445452,-1110.55673179,0.00015903,2]
[400504080,1767677445462,-2498.75264652,0.00015903,2]
[400504081,1767677445471,-4442.22692715,0.00015903,2]
[400504082,1767677445481,-6934.0385941,0.00015903,2]
[400504083,1767677445489,-373.70991928,0.00015931,2]
[400504084,1767677445498,-642.30394507,0.00015932,2]
[400504085,1767677445507,-2569.21578027,0.00015932,2]
[400504086,1767677445518,-5774.95477009,0.00015932,2]
[400504087,1767677445527,-5000.0,0.00015939,2]
[400504088,1767677445536,-3000.0,0.00016,2]
[400504089,1767677445547,-3000.0,0.0001601,2]
[400504090,1767677445556,-1990.05554086,0.00016012,2]
[400504091,1767677445565,-21269.10163936,0.00016013,2]
[400504092,1767677445574,-3000.0,0.0001602,2]
[400504093,1767677445583,-5758.300242,0.0001603,2]
[400504094,1767677445592,-3981.06304614,0.00016082,4]
[400504095,1767677445601,-160.0,0.00016099,7]
[400504096,1767677445611,-801.09070688,0.00016164,2]
[400504097,1767677445620,-600.0,0.00016354,2]
[400504098,1767677445630,-198.5755019,0.00016372,2]
[400504099,1767677445640,-864.0,0.0001638,2]
[400504101,1767677445649,-1639.96449792,0.00016396,2]
[400504102,1767677445659,-917.483929,0.00016438,2]
[400504103,1767677445669,-917.483929,0.00016438,2]
[400504104,1767677445679,-917.483929,0.00016438,2]
[400504105,1767677445688,-917.483929,0.00016438,2]
[400504106,1767677445698,-500.0,0.00016438,2]
[400504107,1767677445707,-500.0,0.00016438,2]
[400504108,1767677445717,-594.0421836,0.00016438,2]
[400504109,1767677445727,-500.0,0.00016438,2]
[400504110,1767677445735,-500.0,0.00016438,2]
[400504111,1767677445745,-500.0,0.00016438,2]
[400504112,1767677445754,-500.0,0.00016438,2]
[400504113,1767677445763,-500.0,0.00016438,2]
[400504114,1767677445772,-500.0,0.00016438,2]
[400504115,1767677445782,-500.0,0.00016438,2]
[400504116,1767677445791,-500.0,0.00016438,2]
[400504117,1767677445801,-500.0,0.00016438,2]
[400504118,1767677445811,-500.0,0.00016438,2]
[400504119,1767677445820,-500.0,0.00016438,2]
[400504120,1767677445830,-500.0,0.00016438,2]
[400504121,1767677445840,-500.0,0.00016438,2]
[400504122,1767677445849,-500.0,0.00016438,2]
[400504123,1767677445858,-500.0,0.00016438,2]
[400504124,1767677445867,-500.0,0.00016438,2]
[400504125,1767677445877,-500.0,0.00016438,2]
[400504126,1767677445886,-248.926366,0.00016438,2]
[400504127,1767677445896,-500.0,0.00016438,2]
[400504128,1767677445905,-500.0,0.00016438,2]
[400504129,1767677445917,-500.0,0.00016438,2]
[400504130,1767677445929,-500.0,0.00016438,2]
[400504131,1767677445938,-500.0,0.00016438,2]
[400504132,1767677445949,-500.0,0.00016438,2]
[400504133,1767677445960,-500.0,0.00016438,2]
[400504134,1767677445970,-160.0,0.00016499,8]
[400504135,1767677445979,-215.90131744,0.00016499,5]
[400504136,1767677445989,-156.236454,0.00016671,2]
[400504137,1767677445999,-151.0,0.00016671,2]
[400504138,1767677446008,-151.0,0.00016671,2]
[400504139,1767677446018,-173996.34433472,0.00016731,2]
[400504140,1767677446027,-168.0,0.00016819,2]
[400504141,1767677446036,-921.85041725,0.00016824,3]
[400504142,1767677446045,-161.67291134,0.000169,3]
[400504143,1767677446055,-1027.0,0.00016937,2]
[400504145,1767677446064,-168.0,0.00016986,2]
[400504147,1767677446073,-1001.29903794,0.00017,2]
[400504149,1767677446082,-9129.9227282,0.00017,2]
[400504150,1767677446091,-181.282421,0.00017,2]
[400504151,1767677446101,-181.282421,0.00017,2]
[400504152,1767677446110,-181.282421,0.00017,2]
[400504153,1767677446119,-181.282421,0.00017,2]
[400504154,1767677446128,-168.0,0.00017057,2]
[400504155,1767677446138,-170.73155875,0.00017133,20]
[400504156,1767677446147,-350.06978122,0.00017207,3]
[400504157,1767677446156,-168.0,0.00017225,2]
[400504158,1767677446166,-9220.25398664,0.00017267,3]
[400504159,1767677446176,-600.0,0.00017278,2]
[400504160,1767677446185,-521.0,0.00017292,2]
[400504161,1767677446196,-168.0,0.00017342,2]
[400504162,1767677446205,-168.0,0.00017425,2]
[400504163,1767677446215,-170.73155875,0.00017443,22]
[400504164,1767677446225,-168.0,0.00017449,2]
[400504165,1767677446235,-600.0,0.00017458,2]
[400504166,1767677446247,-168.0,0.00017459,2]
[400504167,1767677446256,-168.0,0.00017464,2]
[400504168,1767677446268,-4938.82880768,0.00017465,7]
[400504169,1767677446280,-168.0,0.0001754,2]
[400504170,1767677446290,-172.0,0.00017588,2]
[400504171,1767677446300,-168.0,0.00017594,2]
[400504172,1767677446310,-2000.0,0.00017628,3]
[400504173,1767677446319,-2000.0,0.00017637,3]
[400504174,1767677446329,-600.0,0.00017638,2]
[400504175,1767677446338,-301.0,0.00017645,2]
[400504176,1767677446348,-2000.0,0.00017645,3]
[400504177,1767677446357,-2000.0,0.00017654,3]
[400504178,1767677446366,-2000.0,0.00017663,3]
[400504179,1767677446376,-2000.0,0.00017672,3]
[400504180,1767677446384,-168.0,0.0001768,2]
[400504181,1767677446393,-2000.0,0.00017681,3]
[400504182,1767677446402,-2000.0,0.00017682,3]
[400504183,1767677446411,-168.0,0.00017683,2]
[400504184,1767677446420,-2000.0,0.00017689,3]
[400504185,1767677446430,-2000.0,0.0001769,3]
[400504186,1767677446439,-996.0,0.00017719,2]
[400504187,1767677446448,-600.0,0.00017724,7]
[400504188,1767677446458,-2000.0,0.0001774,3]
[400504189,1767677446468,-2000.0,0.00017749,3]
[400504190,1767677446477,-2000.0,0.00017752,3]
[400504191,1767677446486,-170.73155875,0.00017753,23]
[400504192,1767677446495,-2000.0,0.00017758,3]
[400504193,1767677446504,-2000.0,0.00017758,3]
[400504194,1767677446513,-2000.0,0.00017791,3]
[400504195,1767677446522,-2000.0,0.000178,3]
[400504196,1767677446531,-151.0,0.000178,2]
[400504197,1767677446540,-294.498012,0.000178,2]
[400504198,1767677446549,-917.483929,0.000178,2]
[400504199,1767677446558,-917.483929,0.000178,2]
[400504200,1767677446567,-917.483929,0.000178,2]
[400504201,1767677446576,-917.483929,0.000178,2]
[400504202,1767677446585,-181.282421,0.000178,2]
[400504203,1767677446595,-181.282421,0.000178,2]
[400504204,1767677446604,-181.282421,0.000178,2]
[400504205,1767677446613,-181.282421,0.000178,2]
[400504206,1767677446622,-151.0,0.000178,2]
[400504207,1767677446631,-100886.15772372,0.000178,3]
[400504208,1767677446854,-526.30212007,0.000178,3]
[400504209,1767677447677,-184.45,0.00012329,2]
[400504210,1767677447686,-126.18394214,0.00013698,2]
[400504211,1767677447697,-418.14605786,0.00013698,2]
[400504212,1767677447706,-292.70797476,0.00013698,2]
[400504213,1767677447717,-251.62202524,0.00013698,2]
[400504214,1767677447726,-18650.38567323,0.000178,3]
[400504215,1767677447737,-2274.42073784,0.000178,3]
[400504216,1767677447787,-490.609,0.00013698,2]
[400504217,1767677447799,-53.721,0.00013698,2]
[400504218,1767677447807,-544.33,0.00013698,2]
[400504219,1767677447817,-544.33,0.00013698,2]
[400504220,1767677447826,-544.33,0.00013698,2]
[400504221,1767677447836,-544.33,0.00013698,2]
[400504222,1767677447846,-544.33,0.00013698,2]
[400504223,1767677447856,-26982.18879854,0.000178,3]
[400504224,1767677447868,-5755.62428489,0.000178,3]
[400504225,1767677471539,200.0,0.00011,20]
[400504249,1767678003823,162.87007261,0.00024346,120]
[400504250,1767678003904,170.13665284,0.00024346,120]
[400504251,1767678253544,90000.0,0.00030136,120]
[400504252,1767678332049,4882.0,0.00030136,120]
[400504253,1767678372958,20272.44663248,0.00030136,120]
[400504277,1767678632451,-225.04666408,0.00011747,2]
[400504278,1767678632461,-585.0,0.00011747,2]
[400504279,1767678632470,-300.0,0.00011817,2]
[400504280,1767678632479,-1200.0,0.00011817,2]
[400504281,1767678632488,-728.50173368,0.00011818,2]
[400504331,1767678638527,-500.0,0.00011817,2]
[400504333,1767678638536,-500.0,0.00011817,2]
[400504335,1767678638545,-500.0,0.00011817,2]
[400504337,1767678638555,-211.71854244,0.00011817,2]
[400504339,1767678638564,-640.56483241,0.00011817,2]
[400504341,1767678638573,-500.0,0.00011817,2]
[400504343,1767678638591,-500.0,0.00011817,2]
[400504345,1767678638614,-500.0,0.00011817,2]
[400504347,1767678638634,-500.0,0.00011817,2]
[400504349,1767678638644,-500.0,0.00011817,2]
[400504351,1767678638654,-500.0,0.00011817,2]
[400504352,1767678638664,-500.0,0.00011817,2]
[400504354,1767678638674,-500.0,0.00011817,2]
[400504356,1767678638684,-500.0,0.00011817,2]
[400504358,1767678638693,-500.0,0.00011817,2]
[400504360,1767678638705,-500.0,0.00011817,2]
[400504362,1767678638715,-500.0,0.00011817,2]
[400504364,1767678638723,-500.0,0.00011817,2]
[400504366,1767678638733,-500.0,0.00011817,2]
[400504368,1767678638743,-500.0,0.00011817,2]
[400504370,1767678638753,-500.0,0.00011817,2]
[400504372,1767678638762,-289.69269677,0.00011817,2]
[400504375,1767678638774,-210.30730323,0.00011817,2]
[400504377,1767678638783,-500.0,0.00011817,2]
[400504379,1767678638792,-500.0,0.00011817,2]
[400504381,1767678638802,-180.60988628,0.00011817,2]
[400504382,1767678638811,-500.0,0.00011817,2]
[400504384,1767678638820,-500.0,0.00011817,2]
[400504386,1767678638829,-500.0,0.00011817,2]
[400504388,1767678638838,-201.51104812,0.00011817,2]
[400504391,1767678638852,-298.48895188,0.00011817,2]
[400504393,1767678638862,-500.0,0.00011817,2]
[400504395,1767678638871,-395.88858297,0.00011817,2]
[400504397,1767678638881,-274.8929252,0.00011817,2]
[400504399,1767678638890,-177.37783673,0.00011817,2]
[400504401,1767678638900,-500.0,0.00011817,2]
[400504403,1767678638909,-500.0,0.00011817,2]
[400504405,1767678638919,-500.0,0.00011817,2]
[400504407,1767678638928,-500.0,0.00011817,2]
[400504409,1767678638937,-500.0,0.00011817,2]
[400504411,1767678638947,-500.0,0.00011817,2]
[400504413,1767678638956,-500.0,0.00011817,2]
[400504414,1767678638967,-500.0,0.00011817,2]
[400504416,1767678638976,-500.0,0.00011817,2]
[400504418,1767678638985,-500.0,0.00011817,2]
[400504420,1767678638994,-500.0,0.00011817,2]
[400504422,1767678639004,-500.0,0.00011817,2]
[400504424,1767678639013,-500.0,0.00011817,2]
[400504426,1767678639023,-500.0,0.00011817,2]
[400504428,1767678639032,-500.0,0.00011817,2]
[400504430,1767678639041,-500.0,0.00011817,2]
[400504432,1767678639051,-500.0,0.00011817,2]
[400504434,1767678639060,-500.0,0.00011817,2]
[400504436,1767678639070,-500.0,0.00011817,2]
[400504438,1767678639080,-648.22935897,0.00011817,2]
[400504440,1767678639090,-583.42439181,0.00011817,2]
[400504442,1767678639101,-500.0,0.00011817,2]
[400504444,1767678639110,-1.16293847,0.00011817,2]
[400504446,1767678639123,-498.83706153,0.00011817,2]
[400504448,1767678639133,-500.0,0.00011817,2]
[400504450,1767678639142,-999271.49826632,0.00011818,2]
[400504452,1767678639151,-274.78670535,0.00011847,2]
[400504453,1767678639161,-204.88595441,0.00011916,2]
[400504455,1767678639170,-50000.0,0.00011916,2]
[400504457,1767678639179,-151.0,0.00011919,2]
[400504459,1767678639189,-151.0,0.00011919,2]
[400504461,1767678639198,-151.0,0.00011919,2]
[400504463,1767678639207,-151.0,0.00011919,2]
[400504466,1767678639224,-274.51827994,0.00011919,2]
[400504467,1767678639237,-151.38560338,0.00011919,2]
[400504470,1767678639247,-500.0,0.00011921,2]
[400504471,1767678639256,-168.055,0.00011921,2]
[400504474,1767678639266,-300.0,0.00012163,2]
[400504475,1767678639275,-300.0,0.00012163,2]
[400504477,1767678639284,-300.0,0.00012163,2]
[400504479,1767678639293,-300.0,0.00012163,2]
[400504481,1767678639303,-300.0,0.00012163,2]
[400504483,1767678639312,-300.0,0.00012163,2]
[400504485,1767678639322,-300.0,0.00012163,2]
[400504487,1767678639331,-300.0,0.00012163,2]
[400504489,1767678639341,-300.0,0.00012163,2]
[400504491,1767678639350,-300.0,0.00012163,2]
[400504493,1767678639360,-300.0,0.00012163,2]
[400504495,1767678639370,-300.0,0.00012163,2]
[400504497,1767678639379,-300.0,0.00012163,2]
[400504499,1767678639388,-300.0,0.00012163,2]
[400504501,1767678639402,-300.0,0.00012163,2]
[400504503,1767678639411,-500.0,0.00012195,2]
[400504506,1767678639421,-2337.47,0.00012329,2]
[400504508,1767678639430,-1947.89,0.00012329,2]
[400504510,1767678639440,-1623.24,0.00012329,2]
[400504512,1767678639449,-1352.7,0.00012329,2]
[400504513,1767678639459,-1127.25,0.00012329,2]
[400504515,1767678639468,-1127.25,0.00012329,2]
[400504517,1767678639478,-751.5,0.00012329,2]
[400504519,1767678639487,-626.25,0.00012329,2]
[400504521,1767678639498,-521.88,0.00012329,2]
[400504524,1767678639507,-434.9,0.00012329,2]
[400504526,1767678639518,-362.41,0.00012329,2]
[400504527,1767678639528,-302.01,0.00012329,2]
[400504529,1767678639539,-251.68,0.00012329,2]
[400504531,1767678639548,-600.0,0.00012405,2]
[400504534,1767678639558,-420.0,0.00012974,2]
[400504536,1767678639567,-1680.0,0.00012998,2]
[400504538,1767678639577,-500.0,0.00013273,2]
[400504540,1767678639586,-500.0,0.00013273,2]
[400504542,1767678639595,-500.0,0.00013273,2]
[400504544,1767678639605,-500.0,0.00013273,2]
[400504545,1767678639615,-500.0,0.00013273,2]
[400504547,1767678639626,-500.0,0.00013273,2]
[400504549,1767678639637,-500.0,0.00013273,2]
[400504551,1767678639647,-545.13520472,0.00013273,2]
[400504553,1767678639656,-270.22569021,0.00013273,2]
[400504555,1767678639665,-340.82770091,0.00013273,2]
[400504557,1767678639677,-500.0,0.00013273,2]
[400504559,1767678639688,-381.48667104,0.00013273,2]
[400504561,1767678639697,-500.0,0.00013273,2]
[400504579,1767678639851,-500.0,0.00013273,2]
[400504581,1767678639862,-500.0,0.00013273,2]
[400504583,1767678639871,-500.0,0.00013273,2]
[400504585,1767678639881,-500.0,0.00013273,2]
[400504587,1767678639890,-500.0,0.00013273,2]
[400504589,1767678639900,-500.0,0.00013273,2]
[400504591,1767678639909,-500.0,0.00013273,2]
[400504593,1767678639919,-500.0,0.00013273,2]
[400504595,1767678639929,-500.0,0.00013273,2]
[400504598,1767678639938,-500.0,0.00013273,2]
[400504599,1767678639947,-500.0,0.00013273,2]
[400504601,1767678639958,-500.0,0.00013273,2]
[400504604,1767678639968,-500.0,0.00013273,2]
[400504606,1767678639977,-500.0,0.00013273,2]
[400504608,1767678639987,-500.0,0.00013273,2]
[400504610,1767678639996,-500.0,0.00013273,2]
[400504612,1767678640005,-186.38733603,0.00013273,2]
[400504614,1767678640014,-500.0,0.00013273,2]
[400504616,1767678640023,-602.7767078,0.00013273,2]
[400504618,1767678640032,-500.0,0.00013273,2]
[400504620,1767678640041,-500.0,0.00013273,2]
[400504621,1767678640050,-444.85685541,0.00013273,2]
[400504623,1767678640060,-500.0,0.00013273,2]
[400504626,1767678640070,-500.50196388,0.00013273,2]
[400504628,1767678640079,-501.1671243,0.00013273,2]
[400504630,1767678640088,-500.0,0.00013273,2]
[400504632,1767678640099,-500.0,0.00013273,2]
[400504634,1767678640110,-500.0,0.00013273,2]
[400504636,1767678640122,-1041.66666667,0.00013334,2]
[400504637,1767678640131,-720.0,0.00013646,2]
[400504639,1767678640140,-300.0,0.00013673,2]
[400504641,1767678640150,-500.0,0.00013698,2]
[400504643,1767678640158,-500.0,0.00013698,2]
[400504645,1767678640168,-500.0,0.00013698,2]
[400504647,1767678640178,-500.0,0.00013698,2]
[400504649,1767678640187,-500.0,0.00013698,2]
[400504651,1767678640195,-500.0,0.00013698,2]
[400504653,1767678640204,-500.0,0.00013698,2]
[400504655,1767678640213,-500.0,0.00013698,2]
[400504657,1767678640222,-500.0,0.00013698,2]
[400504659,1767678640231,-500.0,0.00013698,2]
[400504662,1767678640240,-500.0,0.00013698,2]
[400504664,1767678640249,-500.0,0.00013698,2]
[400504666,1767678640259,-500.0,0.00013698,2]
[400504668,1767678640268,-500.0,0.00013698,2]
[400504670,1767678640279,-500.0,0.00013698,2]
[400504672,1767678640288,-500.0,0.00013698,2]
[400504674,1767678640297,-476.39506874,0.00013698,2]
[400504676,1767678640307,-664.2,0.00013698,2]
[400504678,1767678640317,-664.2,0.00013698,2]
[400504680,1767678640326,-664.2,0.00013698,2]